fUSD/lending_fUSD_20241107
["ID","MTS","AMOUNT","RATE_DAILY","PERIOD"]
[341540824,1730970640392,-844.66,0.00030136,4]
[341540825,1730970640401,-500.0,0.00030136,4]
[341540826,1730970640411,-75.68973872,0.00030136,4]
[341540827,1730970640472,-282.24620379,0.00030136,4]
[341540834,1730970642720,-15964.758,0.00029935,2]
[341540836,1730970642770,-75129.00000001,0.00029935,2]
[341540837,1730970642931,-153906.24199999,0.00029935,2]
[341540838,1730970642941,-142.06405749,0.00030136,4]
[341540839,1730970642951,-500.0,0.00030136,4]
[341540840,1730970642961,-500.0,0.00030136,4]
[341540841,1730970642971,-500.0,0.00030136,4]
[341540842,1730970642980,-500.0,0.00030136,4]
[341540843,1730970642990,-583.53,0.00030136,4]
[341540844,1730970643002,-500.0,0.00030136,4]
[341540845,1730970643011,-611.51,0.00030136,4]
[341540846,1730970643022,-1007.49,0.00030136,4]
[341540847,1730970643032,-725.52,0.00030136,4]
[341540848,1730970643042,-500.0,0.00030136,4]
[341540849,1730970643051,-500.0,0.00030136,4]
[341540850,1730970643061,-538.5,0.00030136,4]
[341540851,1730970643070,-500.0,0.00030136,4]
[341540852,1730970643080,-500.0,0.00030136,4]
[341540853,1730970643090,-1353.27,0.00030136,4]
[341540854,1730970643099,-500.0,0.00030136,4]
[341540855,1730970643108,-500.0,0.00030136,4]
[341540856,1730970643118,-500.0,0.00030136,4]
[341540857,1730970643127,-564.44,0.00030136,4]
[341540858,1730970643139,-500.0,0.00030136,4]
[341540859,1730970643149,-789.05,0.00030136,4]
[341540860,1730970643159,-500.0,0.00030136,4]
[341540861,1730970643168,-500.0,0.00030136,4]
[341540862,1730970643179,-500.0,0.00030136,4]
[341540863,1730970643188,-500.0,0.00030136,4]
[341540864,1730970643198,-500.0,0.00030136,4]
[341540865,1730970643208,-500.0,0.00030136,4]
[341540866,1730970643217,-500.0,0.00030136,4]
[341540867,1730970643227,-500.0,0.00030136,4]
[341540868,1730970643236,-608.73,0.00030136,4]
[341540869,1730970643246,-500.0,0.00030136,4]
[341540870,1730970643257,-500.0,0.00030136,4]
[341540871,1730970643266,-500.0,0.00030136,4]
[341540872,1730970643275,-500.0,0.00030136,4]
[341540873,1730970643286,-500.0,0.00030136,4]
[341540874,1730970643295,-1023.54,0.00030136,4]
[341540875,1730970643304,-881.65,0.00030136,4]
[341540876,1730970643313,-500.0,0.00030136,4]
[341540878,1730970643323,-567.96,0.00030136,4]
[341540879,1730970643332,-500.0,0.00030136,4]
[341540880,1730970643341,-548.4,0.00030136,4]
[341540881,1730970643352,-513.25002664,0.00030136,4]
[341540882,1730970643362,-598.04,0.00030136,4]
[341540883,1730970643371,-936.86,0.00030136,4]
[341540884,1730970643380,-500.0,0.00030136,4]
[341540885,1730970643389,-500.0,0.00030136,4]
[341540886,1730970643398,-500.0,0.00030136,4]
[341540887,1730970643408,-500.0,0.00030136,4]
[341540888,1730970643420,-500.0,0.00030136,4]
[341540889,1730970643429,-774.93,0.00030136,4]
[341540890,1730970643439,-500.0,0.00030136,4]
[341540891,1730970643449,-500.0,0.00030136,4]
[341540892,1730970643459,-522.55050271,0.00030136,4]
[341540893,1730970643469,-500.0,0.00030136,4]
[341540894,1730970643479,-1285.33,0.00030136,4]
[341540895,1730970643488,-500.0,0.00030136,4]
[341540896,1730970643497,-667.98,0.00030136,4]
[341540897,1730970643506,-603.13,0.00030136,4]
[341540898,1730970643516,-500.0,0.00030136,4]
[341540899,1730970643526,-1059.58,0.00030136,4]
[341540900,1730970643536,-500.0,0.00030136,4]
[341540901,1730970643546,-1062.79,0.00030136,4]
[341540902,1730970643556,-500.0,0.00030136,4]
[341540903,1730970643565,-500.0,0.00030136,4]
[341540904,1730970643574,-556.5,0.00030136,4]
[341540905,1730970643584,-500.0,0.00030136,4]
[341540906,1730970643595,-500.0,0.00030136,4]
[341540907,1730970643604,-1258.58,0.00030136,4]
[341540908,1730970643613,-1079.08,0.00030136,4]
[341540909,1730970643622,-500.0,0.00030136,4]
[341540910,1730970643631,-500.0,0.00030136,4]
[341540911,1730970643642,-1529.81,0.00030136,4]
[341540912,1730970643651,-500.0,0.00030136,4]
[341540913,1730970643660,-1255.76,0.00030136,4]
[341540914,1730970643670,-500.0,0.00030136,4]
[341540915,1730970643679,-500.0,0.00030136,4]
[341540916,1730970643689,-500.0,0.00030136,4]
[341540917,1730970643698,-500.0,0.00030136,4]
[341540918,1730970643707,-500.0,0.00030136,4]
[341540919,1730970643716,-501.49260364,0.00030136,4]
[341540920,1730970643725,-686.03,0.00030136,4]
[341540921,1730970643734,-586.1,0.00030136,4]
[341540922,1730970643743,-500.0,0.00030136,4]
[341540923,1730970643752,-500.0,0.00030136,4]
[341540924,1730970643762,-500.0,0.00030136,4]
[341540925,1730970643773,-500.0,0.00030136,4]
[341540926,1730970643783,-500.0,0.00030136,4]
[341540927,1730970643792,-1284.08,0.00030136,4]
[341540928,1730970643801,-809.86,0.00030136,4]
[341540929,1730970643810,-500.0,0.00030136,4]
[341540930,1730970643820,-500.0,0.00030136,4]
[341540931,1730970643829,-500.0,0.00030136,4]
[341540932,1730970643838,-500.0,0.00030136,4]
[341540933,1730970643848,-1159.7,0.00030136,4]
[341540934,1730970643857,-684.31,0.00030136,4]
[341540935,1730970643866,-500.0,0.00030136,4]
[341540936,1730970643876,-500.0,0.00030136,4]
[341540937,1730970643885,-500.0,0.00030136,4]
[341540938,1730970643895,-500.0,0.00030136,4]
[341540939,1730970643905,-500.0,0.00030136,4]
[341540940,1730970643915,-716.53,0.00030136,4]
[341540941,1730970643925,-935.19,0.00030136,4]
[341540942,1730970643935,-500.0,0.00030136,4]
[341540943,1730970643945,-500.0,0.00030136,4]
[341540944,1730970643955,-500.0,0.00030136,4]
[341540945,1730970643965,-500.0,0.00030136,4]
[341540946,1730970643975,-500.0,0.00030136,4]
[341540947,1730970643984,-500.0,0.00030136,4]
[341540948,1730970643993,-500.0,0.00030136,4]
[341540949,1730970644003,-1380.11,0.00030136,4]
[341540950,1730970644012,-812.37,0.00030136,4]
[341540951,1730970644022,-500.0,0.00030136,4]
[341540952,1730970644032,-549.72,0.00030136,4]
[341540953,1730970644042,-500.0,0.00030136,4]
[341540954,1730970644052,-982.23,0.00030136,4]
[341540955,1730970644062,-500.0,0.00030136,4]
[341540956,1730970644071,-500.0,0.00030136,4]
[341540957,1730970644080,-676.85,0.00030136,4]
[341540958,1730970644090,-621.32,0.00030136,4]
[341540959,1730970644100,-500.0,0.00030136,4]
[341540960,1730970644109,-962.76,0.00030136,4]
[341540961,1730970644118,-1790.68,0.00030136,4]
[341540962,1730970644128,-1122.51,0.00030136,4]
[341540963,1730970644140,-1482.49,0.00030136,4]
[341540964,1730970644150,-764.8,0.00030136,2]
[341540965,1730970644160,-1021.13,0.00030136,4]
[341540966,1730970644169,-500.0,0.00030136,4]
[341540967,1730970644179,-1006.93,0.00030136,4]
[341540968,1730970644188,-500.0,0.00030136,4]
[341540969,1730970644198,-500.0,0.00030136,4]
[341540970,1730970644207,-1066.92,0.00030136,4]
[341540971,1730970644217,-500.0,0.00030136,4]
[341540972,1730970644226,-500.0,0.00030136,4]
[341540973,1730970644236,-536.55,0.00030136,4]
[341540974,1730970644246,-1472.9,0.00030136,4]
[341540975,1730970644255,-500.0,0.00030136,4]
[341540976,1730970644265,-570.74,0.00030136,4]
[341540977,1730970644277,-500.0,0.00030136,4]
[341540978,1730970644287,-500.0,0.00030136,4]
[341540979,1730970644296,-500.0,0.00030136,4]
[341540980,1730970644305,-500.0,0.00030136,4]
[341540981,1730970644315,-500.0,0.00030136,4]
[341540982,1730970644324,-500.0,0.00030136,4]
[341540983,1730970644334,-1296.35,0.00030136,4]
[341540984,1730970644343,-1635.27,0.00030136,4]
[341540985,1730970644352,-966.57,0.00030136,4]
[341540986,1730970644361,-293.99641935,0.00030136,4]
[341540987,1730970644371,-500.0,0.00030136,4]
[341540988,1730970644380,-948.82,0.00030136,4]
[341540989,1730970644390,-1127.0,0.00030136,4]
[341540990,1730970644400,-500.0,0.00030136,4]
[341540991,1730970644410,-500.0,0.00030136,4]
[341540992,1730970644420,-500.0,0.00030136,4]
[341540993,1730970644430,-580.86,0.00030136,4]
[341540994,1730970644439,-500.0,0.00030136,4]
[341540995,1730970644449,-500.0,0.00030136,4]
[341540996,1730970644458,-1175.47,0.00030136,4]
[341540997,1730970644468,-500.0,0.00030136,4]
[341540998,1730970644477,-500.0,0.00030136,4]
[341540999,1730970644487,-539.14474934,0.00030136,4]
[341541000,1730970644496,-500.0,0.00030136,4]
[341541001,1730970644507,-622.64,0.00030136,4]
[341541002,1730970644516,-1306.89,0.00030136,4]
[341541003,1730970644526,-916.24,0.00030136,4]
[341541004,1730970644535,-500.0,0.00030136,4]
[341541005,1730970644544,-599.6,0.00030136,4]
[341541006,1730970644554,-583.49,0.00030136,4]
[341541007,1730970644563,-527.15,0.00030136,4]
[341541008,1730970644572,-500.0,0.00030136,4]
[341541009,1730970644581,-766.23,0.00030136,4]
[341541010,1730970644590,-505.72,0.00030136,4]
[341541011,1730970644599,-1181.03,0.00030136,4]
[341541012,1730970644608,-500.0,0.00030136,4]
[341541013,1730970644617,-500.0,0.00030136,4]
[341541014,1730970644626,-500.0,0.00030136,4]
[341541015,1730970644636,-619.08664302,0.00030136,4]
[341541016,1730970644645,-500.0,0.00030136,4]
[341541017,1730970644654,-500.0,0.00030136,4]
[341541018,1730970644663,-500.0,0.00030136,4]
[341541019,1730970644672,-500.0,0.00030136,4]
[341541020,1730970644681,-611.53,0.00030136,4]
[341541021,1730970644690,-601.83,0.00030136,4]
[341541022,1730970644699,-509.86,0.00030136,4]
[341541023,1730970644709,-500.0,0.00030136,4]
[341541024,1730970644718,-500.0,0.00030136,4]
[341541025,1730970644727,-1210.47,0.00030136,4]
[341541026,1730970644737,-500.0,0.00030136,4]
[341541027,1730970644747,-500.0,0.00030136,4]
[341541028,1730970644756,-1151.84,0.00030136,4]
[341541029,1730970644765,-500.0,0.00030136,4]
[341541030,1730970644776,-500.0,0.00030136,4]
[341541031,1730970644785,-500.0,0.00030136,4]
[341541032,1730970644795,-500.0,0.00030136,4]
[341541033,1730970644804,-690.33,0.00030136,4]
[341541034,1730970644813,-500.0,0.00030136,4]
[341541035,1730970644822,-792.23,0.00030136,4]
[341541036,1730970644831,-500.0,0.00030136,4]
[341541037,1730970644841,-500.0,0.00030136,4]
[341541038,1730970644850,-500.0,0.00030136,4]
[341541039,1730970644859,-500.0,0.00030136,4]
[341541040,1730970644868,-1290.24,0.00030136,4]
[341541041,1730970644878,-500.0,0.00030136,4]
[341541042,1730970644887,-500.0,0.00030136,4]
[341541043,1730970644896,-1066.74,0.00030136,4]
[341541044,1730970644906,-500.0,0.00030136,4]
[341541045,1730970644915,-500.0,0.00030136,4]
[341541046,1730970644924,-629.54967828,0.00030136,4]
[341541047,1730970644933,-500.0,0.00030136,4]
[341541048,1730970644942,-902.55,0.00030136,4]
[341541049,1730970644951,-576.66,0.00030136,4]
[341541050,1730970644960,-500.0,0.00030136,4]
[341541051,1730970644973,-500.0,0.00030136,4]
[341541052,1730970644983,-229.58581222,0.00030136,4]
[341541053,1730970644992,-1380.2,0.00030136,4]
[341541054,1730970645002,-500.0,0.00030136,4]
[341541055,1730970645012,-500.0,0.00030136,4]
[341541056,1730970645023,-500.0,0.00030136,4]
[341541057,1730970645032,-500.0,0.00030136,4]
[341541058,1730970645042,-1531.94,0.00030136,4]
[341541059,1730970645052,-500.0,0.00030136,4]
[341541060,1730970645061,-500.0,0.00030136,4]
[341541061,1730970645071,-500.0,0.00030136,4]
[341541062,1730970645080,-500.0,0.00030136,4]
[341541063,1730970645090,-500.0,0.00030136,4]
[341541064,1730970645100,-523.1,0.00030136,4]
[341541065,1730970645109,-500.0,0.00030136,4]
[341541066,1730970645119,-552.13,0.00030136,4]
[341541067,1730970645129,-654.54,0.00030136,4]
[341541068,1730970645142,-500.0,0.00030136,4]
[341541069,1730970645151,-800.02,0.00030136,4]
[341541070,1730970645161,-500.0,0.00030136,4]
[341541071,1730970645172,-500.0,0.00030136,4]
[341541072,1730970645182,-691.26,0.00030136,4]
[341541073,1730970645191,-500.0,0.00030136,4]
[341541074,1730970645201,-500.0,0.00030136,4]
[341541075,1730970645212,-500.0,0.00030136,4]
[341541076,1730970645222,-500.0,0.00030136,4]
[341541077,1730970645231,-500.0,0.00030136,4]
[341541078,1730970645240,-500.0,0.00030136,4]
[341541079,1730970645250,-842.91,0.00030136,4]
[341541080,1730970645259,-500.0,0.00030136,4]
[341541081,1730970645269,-1238.8,0.00030136,4]
[341541082,1730970645278,-500.0,0.00030136,4]
[341541083,1730970645288,-779.35,0.00030136,4]
[341541084,1730970645299,-500.0,0.00030136,4]
[341541085,1730970645308,-500.0,0.00030136,4]
[341541086,1730970645317,-500.0,0.00030136,4]
[341541087,1730970645327,-635.9,0.00030136,4]
[341541088,1730970645337,-500.0,0.00030136,4]
[341541089,1730970645346,-555.76,0.00030136,4]
[341541090,1730970645356,-500.0,0.00030136,4]
[341541091,1730970645365,-500.0,0.00030136,4]
[341541092,1730970645375,-500.0,0.00030136,4]
[341541093,1730970645385,-1325.14,0.00030136,4]
[341541094,1730970645395,-1531.66,0.00030136,4]
[341541095,1730970645405,-500.0,0.00030136,4]
[341541096,1730970645415,-183.22634651,0.00030136,4]
[341541097,1730970645426,-500.0,0.00030136,4]
[341541098,1730970645436,-500.0,0.00030136,4]
[341541099,1730970645446,-500.0,0.00030136,4]
[341541100,1730970645456,-500.0,0.00030136,4]
[341541101,1730970645466,-500.0,0.00030136,4]
[341541102,1730970645476,-500.0,0.00030136,4]
[341541104,1730970645486,-500.0,0.00030136,4]
[341541105,1730970645495,-940.03,0.00030136,4]
[341541106,1730970645505,-500.0,0.00030136,4]
[341541107,1730970645515,-852.6,0.00030136,4]
[341541108,1730970645526,-200.0,0.00030136,4]
[341541109,1730970645536,-580.27,0.00030136,4]
[341541110,1730970645546,-363.6,0.00030136,4]
[341541111,1730970645556,-568.94,0.00030136,4]
[341541112,1730970645565,-500.0,0.00030136,4]
[341541113,1730970645575,-500.0,0.00030136,4]
[341541114,1730970645584,-500.0,0.00030136,4]
[341541116,1730970645594,-1444.68,0.00030136,4]
[341541118,1730970645604,-501.52058117,0.00030136,4]
[341541120,1730970645614,-500.0,0.00030136,4]
[341541122,1730970645623,-571.6,0.00030136,4]
[341541124,1730970645633,-500.0,0.00030136,4]
[341541126,1730970645643,-500.0,0.00030136,4]
[341541128,1730970645652,-1052.32,0.00030136,4]
[341541130,1730970645662,-2045.22,0.00030136,4]
[341541132,1730970645671,-638.00904402,0.00030136,4]
[341541134,1730970645681,-602.28,0.00030136,4]
[341541136,1730970645691,-633.13,0.00030136,4]
[341541138,1730970645700,-1097.16,0.00030136,4]
[341541140,1730970645710,-500.0,0.00030136,4]
[341541141,1730970645719,-642.08,0.00030136,4]
[341541142,1730970645729,-500.0,0.00030136,4]
[341541143,1730970645739,-1116.17,0.00030136,4]
[341541144,1730970645749,-500.0,0.00030136,4]
[341541145,1730970645758,-500.0,0.00030136,4]
[341541146,1730970645771,-258.13725908,0.00030136,4]
[341541147,1730970645780,-2748.95,0.00030136,4]
[341541148,1730970645791,-500.0,0.00030136,4]
[341541149,1730970645801,-500.0,0.00030136,4]
[341541150,1730970645811,-500.0,0.00030136,4]
[341541151,1730970645821,-500.0,0.00030136,4]
[341541152,1730970645832,-500.0,0.00030136,4]
[341541153,1730970645843,-500.0,0.00030136,4]
[341541154,1730970645852,-1237.78,0.00030136,4]
[341541155,1730970645861,-2000.0,0.00030136,4]
[341541156,1730970645871,-500.0,0.00030136,4]
[341541157,1730970645882,-500.0,0.00030136,4]
[341541158,1730970645893,-500.0,0.00030136,4]
[341541159,1730970645903,-190.48626861,0.00030136,4]
[341541160,1730970645914,-500.0,0.00030136,4]
[341541161,1730970645924,-500.0,0.00030136,4]
[341541162,1730970645934,-957.77,0.00030136,4]
[341541163,1730970645945,-671.28,0.00030136,4]
[341541164,1730970645956,-500.0,0.00030136,4]
[341541165,1730970645966,-500.0,0.00030136,4]
[341541166,1730970645977,-585.55,0.00030136,4]
[341541167,1730970645989,-500.0,0.00030136,4]
[341541168,1730970645999,-757.45,0.00030136,4]
[341541169,1730970646010,-585.1,0.00030136,4]
[341541170,1730970646024,-500.0,0.00030136,4]
[341541171,1730970646035,-500.0,0.00030136,4]
[341541172,1730970646046,-363.14754733,0.00030136,4]
[341541173,1730970646057,-500.0,0.00030136,4]
[341541174,1730970646067,-500.0,0.00030136,4]
[341541175,1730970646077,-1005.12,0.00030136,4]
[341541176,1730970646088,-590.76,0.00030136,4]
[341541177,1730970646098,-500.0,0.00030136,4]
[341541178,1730970646108,-500.0,0.00030136,4]
[341541179,1730970646118,-1601.06,0.00030136,4]
[341541180,1730970646128,-500.0,0.00030136,4]
[341541181,1730970646142,-598.31,0.00030136,4]
[341541182,1730970646151,-500.0,0.00030136,4]
[341541183,1730970646162,-500.0,0.00030136,4]
[341541184,1730970646173,-500.0,0.00030136,4]
[341541185,1730970646184,-730.59,0.00030136,4]
[341541186,1730970646195,-536.87,0.00030136,4]
[341541187,1730970646205,-500.0,0.00030136,4]
[341541188,1730970646216,-500.0,0.00030136,4]
[341541189,1730970646226,-1029.82,0.00030136,4]
[341541190,1730970646236,-500.0,0.00030136,4]
[341541191,1730970646246,-500.0,0.00030136,4]
[341541192,1730970646256,-500.0,0.00030136,4]
[341541193,1730970646265,-813.41,0.00030136,4]
[341541194,1730970646277,-500.0,0.00030136,4]
[341541195,1730970646286,-500.0,0.00030136,4]
[341541196,1730970646295,-500.0,0.00030136,4]
[341541197,1730970646305,-511.21,0.00030136,4]
[341541198,1730970646314,-500.0,0.00030136,4]
[341541199,1730970646324,-511.21,0.00030136,4]
[341541200,1730970646333,-511.21,0.00030136,4]
[341541201,1730970646342,-511.21,0.00030136,4]
[341541202,1730970646352,-511.21,0.00030136,4]
[341541203,1730970646362,-300.0,0.00030136,4]
[341541204,1730970646371,-500.0,0.00030136,4]
[341541205,1730970646381,-500.0,0.00030136,4]
[341541206,1730970646390,-500.0,0.00030136,4]
[341541207,1730970646400,-917.49,0.00030136,4]
[341541208,1730970646409,-500.0,0.00030136,4]
[341541209,1730970646419,-500.0,0.00030136,4]
[341541210,1730970646428,-1390.75,0.00030136,4]
[341541211,1730970646438,-500.0,0.00030136,4]
[341541212,1730970646447,-500.0,0.00030136,4]
[341541213,1730970646456,-500.0,0.00030136,4]
[341541214,1730970646466,-1697.92,0.00030136,4]
[341541215,1730970646476,-500.0,0.00030136,4]
[341541216,1730970646486,-505.48,0.00030136,4]
[341541217,1730970646495,-500.0,0.00030136,4]
[341541218,1730970646506,-500.0,0.00030136,4]
[341541219,1730970646516,-500.0,0.00030136,4]
[341541220,1730970646529,-500.0,0.00030136,4]
[341541221,1730970646539,-500.0,0.00030136,4]
[341541222,1730970646549,-500.0,0.00030136,4]
[341541223,1730970646559,-1055.25,0.00030136,4]
[341541224,1730970646569,-500.0,0.00030136,4]
[341541225,1730970646579,-478.14908785,0.00030136,4]
[341541226,1730970647291,-21.85091215,0.00030136,4]
[341541227,1730970647300,-500.0,0.00030136,4]
[341541228,1730970647309,-500.0,0.00030136,4]
[341541229,1730970647319,-512.09,0.00030136,4]
[341541230,1730970647328,-500.0,0.00030136,4]
[341541231,1730970647337,-537.66,0.00030136,4]
[341541232,1730970647347,-500.0,0.00030136,4]
[341541233,1730970647356,-500.0,0.00030136,4]
[341541234,1730970647366,-500.0,0.00030136,4]
[341541235,1730970647376,-500.0,0.00030136,4]
[341541236,1730970647387,-775.37,0.00030136,4]
[341541237,1730970647396,-500.0,0.00030136,4]
[341541238,1730970647406,-500.0,0.00030136,4]
[341541239,1730970647416,-500.0,0.00030136,4]
[341541240,1730970647426,-500.0,0.00030136,4]
[341541241,1730970647436,-774.89,0.00030136,4]
[341541242,1730970647445,-500.0,0.00030136,4]
[341541243,1730970647454,-1029.66,0.00030136,4]
[341541244,1730970647463,-500.0,0.00030136,4]
[341541245,1730970647473,-813.05,0.00030136,4]
[341541246,1730970647482,-1200.51,0.00030136,4]
[341541247,1730970647492,-500.0,0.00030136,4]
[341541248,1730970647501,-500.0,0.00030136,4]
[341541249,1730970647510,-901.16,0.00030136,4]
[341541250,1730970647521,-500.0,0.00030136,4]
[341541251,1730970647530,-500.0,0.00030136,4]
[341541252,1730970647539,-687.97,0.00030136,4]
[341541253,1730970647548,-500.0,0.00030136,4]
[341541254,1730970647558,-646.78,0.00030136,4]
[341541255,1730970647568,-500.0,0.00030136,4]
[341541256,1730970647577,-910.53,0.00030136,4]
[341541257,1730970647586,-500.0,0.00030136,4]
[341541258,1730970647596,-1176.55,0.00030136,4]
[341541259,1730970647606,-500.0,0.00030136,4]
[341541260,1730970647615,-500.0,0.00030136,4]
[341541261,1730970647624,-500.0,0.00030136,4]
[341541262,1730970647633,-500.0,0.00030136,4]
[341541263,1730970647643,-500.0,0.00030136,4]
[341541264,1730970647654,-500.0,0.00030136,4]
[341541265,1730970647665,-500.0,0.00030136,4]
[341541266,1730970647676,-500.0,0.00030136,4]
[341541267,1730970647688,-500.0,0.00030136,4]
[341541268,1730970647698,-500.0,0.00030136,4]
[341541269,1730970647707,-961.62,0.00030136,4]
[341541270,1730970647716,-698.99,0.00030136,4]
[341541271,1730970647726,-500.0,0.00030136,4]
[341541272,1730970647735,-537.63,0.00030136,4]
[341541273,1730970647744,-563.72,0.00030136,4]
[341541274,1730970647753,-682.28,0.00030136,4]
[341541275,1730970647762,-575.59,0.00030136,4]
[341541276,1730970647772,-890.17,0.00030136,4]
[341541277,1730970647781,-500.0,0.00030136,4]
[341541278,1730970647790,-500.0,0.00030136,4]
[341541279,1730970647799,-500.0,0.00030136,4]
[341541280,1730970647808,-723.88,0.00030136,4]
[341541281,1730970647817,-500.0,0.00030136,4]
[341541282,1730970647826,-500.0,0.00030136,4]
[341541283,1730970647836,-500.0,0.00030136,4]
[341541284,1730970647845,-500.0,0.00030136,4]
[341541285,1730970647855,-500.0,0.00030136,4]
[341541286,1730970647864,-500.0,0.00030136,4]
[341541287,1730970647874,-1091.75,0.00030136,4]
[341541288,1730970647883,-533.81,0.00030136,4]
[341541289,1730970647892,-500.0,0.00030136,4]
[341541290,1730970647901,-1128.53,0.00030136,4]
[341541291,1730970647910,-2671.55,0.00030136,4]
[341541292,1730970647920,-1705.31,0.00030136,4]
[341541293,1730970647929,-500.0,0.00030136,4]
[341541294,1730970647939,-749.9,0.00030136,4]
[341541295,1730970647949,-908.79,0.00030136,4]
[341541296,1730970647959,-500.0,0.00030136,4]
[341541297,1730970647970,-500.0,0.00030136,4]
[341541298,1730970647981,-500.0,0.00030136,4]
[341541299,1730970647990,-500.0,0.00030136,4]
[341541300,1730970648000,-500.0,0.00030136,4]
[341541301,1730970648009,-500.0,0.00030136,4]
[341541302,1730970648019,-500.0,0.00030136,4]
[341541303,1730970648029,-1703.04,0.00030136,4]
[341541304,1730970648038,-500.0,0.00030136,4]
[341541305,1730970648048,-500.0,0.00030136,4]
[341541306,1730970648058,-1530.92,0.00030136,4]
[341541307,1730970648068,-500.0,0.00030136,4]
[341541308,1730970648077,-500.0,0.00030136,4]
[341541309,1730970648087,-749.72,0.00030136,4]
[341541310,1730970648097,-500.0,0.00030136,4]
[341541311,1730970648107,-500.0,0.00030136,4]
[341541312,1730970648117,-1550.23,0.00030136,4]
[341541313,1730970648127,-1024.69,0.00030136,4]
[341541314,1730970648137,-500.0,0.00030136,4]
[341541315,1730970648149,-500.0,0.00030136,4]
[341541316,1730970648158,-500.0,0.00030136,4]
[341541317,1730970648168,-1422.86,0.00030136,4]
[341541318,1730970648178,-1273.51,0.00030136,4]
[341541319,1730970648188,-500.0,0.00030136,4]
[341541320,1730970648199,-500.0,0.00030136,4]
[341541321,1730970648208,-4905.93,0.00030136,4]
[341541322,1730970648218,-668.95,0.00030136,4]
[341541323,1730970648227,-712.67,0.00030136,4]
[341541324,1730970648236,-500.0,0.00030136,4]
[341541325,1730970648246,-597.48,0.00030136,4]
[341541326,1730970648255,-925.41,0.00030136,4]
[341541327,1730970648265,-943.0,0.00030136,4]
[341541328,1730970648276,-500.0,0.00030136,4]
[341541329,1730970648285,-320.57453902,0.00030136,4]
[341541330,1730970648294,-500.0,0.00030136,4]
[341541331,1730970648303,-844.02,0.00030136,4]
[341541332,1730970648313,-500.0,0.00030136,4]
[341541333,1730970648322,-1259.14,0.00030136,4]
[341541334,1730970648331,-1883.7,0.00030136,4]
[341541335,1730970648340,-500.0,0.00030136,4]
[341541336,1730970648350,-2007.27,0.00030136,4]
[341541337,1730970648361,-500.0,0.00030136,4]
[341541338,1730970648370,-500.0,0.00030136,4]
[341541339,1730970648380,-500.0,0.00030136,4]
[341541340,1730970648389,-500.0,0.00030136,4]
[341541341,1730970648398,-500.0,0.00030136,4]
[341541342,1730970648407,-500.0,0.00030136,4]
[341541343,1730970648417,-500.0,0.00030136,4]
[341541344,1730970648426,-500.0,0.00030136,4]
[341541345,1730970648435,-500.0,0.00030136,4]